Workbook

Sheet GT&CONDITIONS
D2: Resin_Quantity_Calculator v.1.06 | E2: Language
E3: EN
D6: RESIN QUANTITY CALCULATOR
C7: GENERAL TERMS AND CONDITIONS OF THE LICENSE AGREEMENT FOR THE USE OF THE SPREADSHEET "Resin_Quantity_Calculator"
B12: 1. SUBJECT
C14: With these General Terms and Conditions (or "Agreement"), ROTHO BLAAS SRL, with registered office at I-39040 Cortaccia (BZ), Via dell'Adige 2/1 (hereinafter "RB") grants the user the non-exclusive and revocable right to use the spreadsheet (hereinafter "XLS") free of charge under the following conditions and during the term of this Agreement. In any case, RB does not guarantee the legal and design conformity of the calculations, as RB intends to provide only an indicative calculation tool to be considered as a technical-commercial service within the sales activity. XLS allows the user to perform static calculations only for the products and materials indicated in each of its sections. This Agreement expressly prohibits to use XLS to manufacture products that are not indicated. This Agreement therefore governs the relationship between the User and RB with respect to the use of this spreadsheet. By downloading and using XLS, the user accepts this Agreement and the conditions set out herein.
B16: 2. RB RIGHTS AND OBLIGATIONS
C18: RB: a) makes available XLS to the User free of charge, as it is; b) does not provide the user with any technical support for using XLS; c) does not guarantee that XLS complies with the regulations in force or with the calculations design made using it. In particular, as a result of changes to the relevant provisions, such as standards, approvals, etc., the spreadsheet may become invalid in part or in full. d) while reserving the right to update, revise and develop XLS, RB does not assume any obligation towards the user to verify, correct, complete or update the spreadsheet and/or make the updates available to the user.
B20: 3. USER RIGHTS AND OBLIGATIONS
C22: The User declares to use the spreadsheet as a professional excluding any use as a consumer, and to always comply with the following obligations and prohibitions: a) obligation and responsibility to verify that XLS meets the specific needs and that it is compatible with the hardware-software-systems; b) obligation to verify, for each use, the compliance of the calculations made through XLS to the regulations in force and to the project; c) obligation to verify the legal compliance of the calculations made through the Software; d) obligation to use the latest version of XLS made available by the RB contact person, checking at each use for any updates that have occurred; e) prohibition to use XLS for products not indicated in each calculation section; f) obligation to use updated antivirus software that complies with the industry standard in force; g) obligation not to assign the licence to use XLS to third parties and/or in any other way transfer, pledge or lease, rent or share with others or sublicense the rights to use the spreadsheet; h) prohibition to modify or vary XLS in any way, including through third parties. The user commits himself to ask the RB contact person for the last version of the XLS.
B24: 4. COPYRIGHTS
C26: The copyrights on the formulations referred to in the spreadsheet and all the intellectual and industrial property rights underlying them (such as, but not limited to: trademarks, patents, trade secrets, know-how, confidential information) are and remain the exclusive property of RB. This agreement does not transfer any of the above rights to the user.
B28: 5. DURATION, WITHDRAWAL AND TERMINATION
C30: These general conditions and, consequently, the licence to use the spreadsheet, are valid from the moment of downloading it until the termination of its use. The user may withdraw from this Agreement at any time by deleting the XLS and all copies from its systems. RB may withdraw from this Agreement and deactivate the service in the event of a breach of any of the provisions governing the license of use. In the event that RB notifies its termination, the user shall remove the spreadsheet and any copies thereof from its systems.
B32: 6. RESPONSIBILITY
C34: The user is solely responsible for the use of XLS, including, but not limited to, all calculations, printouts, export data made with it and/or for entry errors, protection of data files and maintenance and in general for any use of the spreadsheet. RB does not guarantee and in no case can be held responsible for damages, losses and costs or other consequences, for any reason (warranty for defects, warranty for malfunction, product or legal responsibility, etc.) deriving from: • use of XLS, calculations made, compliance with current legislation, with the design or other User needs; • hardware and software compatibility, viruses, malfunctions, defects, errors or gaps; • failure to update the spreadsheet and/or interruption of the availability of the spreadsheet and/or termination of the agreement for any reason; • infringement of intellectual property rights of third parties. The user confirms to have understood and accepted the disclaimers and limitations of liability and claim of this Agreement. The user also confirms that the spreadsheet is available for free, that the exclusions and limitations are fundamental elements of this Agreement and that RB does not make its spreadsheet available to the user if the exclusions or limitations are deleted or modified in favour of the user.
B36: 7. REFUND
C38: The user agrees to indemnify and hold harmless RB, its subsidiaries and its or its officers, directors, employees, successors and appointees (each individually, ""Beneficiary"", collectively, the ""Beneficiaries"") for the costs incurred in relation to claims made by third parties for damages or losses deriving from the use of the spreadsheet by the user (including, but not limited to, fees and management costs incurred by RB).
B40: 8. MISCELLANEOUS
C42: These general conditions constitute the entire agreement between RB and the user regarding the subject matter and replace all previous, oral or written agreements, as well as any agreements between RB and the user.
B44: 9. LANGUAGE
C46: In the event of differences between versions of these conditions in the various languages, the English text is binding and takes precedence with respect to the translations.
B48: 10. APPLICABLE LAW AND COURT OF JURISDICTION
C50: This agreement and any relationship between the parties is governed exclusively by the Italian law. Any dispute that may arise between the parties in relation to this agreement, that cannot be resolved amicably, shall be brought before the court of Bolzano.
B52: 11. PRIVACY
C54: Refer to the privacy policy available at the link:
C55: https://www.rothoblaas.com/privacy-policy
A57: ACCEPT

Sheet Rod & Bars Resin Quantity
K1: INDEX | Y1: EPO-FIX Epoxy Chemical Anchor [585 ml] | Z1: HYB-FIX Hybrid Chemical Anchor [280 ml] | AA1: HYB-FIX Hybrid Chemical Anchor [420 ml] | AB1: VIN-FIX Vinylester Chemical Anchor [300 ml] | AC1: VIN-FIX Vinylester Chemical Anchor [420 ml] | AD1: VIN-FIX PRO NORDIC Vinylester Chemical Anchor [410 ml]
K2: =MATCH(C12,L1:L13,0) -> 11 | W2: d1 [mm] | X2: d2 [mm] | Y2: d0 [mm] | Z2: d0 [mm] | AA2: d0 [mm] | AB2: d0 [mm] | AC2: d0 [mm] | AD2: d0 [mm]
V3: =CONCATENATE("M",W3) -> M8 | W3: 8 | X3: 6.47 | Y3: 10 | Z3: 10 | AA3: 10 | AB3: 10 | AC3: 10 | AD3: 10
F4: RESIN QUANTITY CALCULATOR version 1.06 | V4: =CONCATENATE("M",W4) -> M10 | W4: 10 | X4: 8.16 | Y4: 12 | Z4: 12 | AA4: 12 | AB4: 12 | AC4: 12 | AD4: 12
V5: M12 | W5: 12 | X5: 9.85 | Y5: 14 | Z5: 14 | AA5: 14 | AB5: 14 | AC5: 14 | AD5: 14
B6: RESIN QUANTITY CALCULATION | V6: =CONCATENATE("M",W6) -> M16 | W6: 16 | X6: 13.55 | Y6: 18 | Z6: 18 | AA6: 18 | AB6: 18 | AC6: 18 | AD6: 18
B7: for doweling threaded rods and bars in solid materials | V7: =CONCATENATE("M",W7) -> M20 | W7: 20 | X7: 16.93 | Y7: 22 | Z7: 22 | AA7: 22 | AB7: 24 | AC7: 24 | AD7: 22
L8: EPO-FIX Epoxy Chemical Anchor [585 ml] | M8: EPO585 | N8: 0.585 | O8: [585] | P8: ml | Q8: CARTRIDGES | V8: =CONCATENATE("M",W8) -> M24 | W8: 24 | X8: 20.32 | Y8: 28 | Z8: 28 | AA8: 28 | AB8: 28 | AC8: 28 | AD8: 26
L9: HYB-FIX Hybrid Chemical Anchor [280 ml] | M9: HYB280 | N9: 0.28 | O9: [280] | P9: ml | Q9: CARTRIDGES | V9: =CONCATENATE("M",W9) -> M27 | W9: 27 | X9: 23.32 | Y9: 30 | Z9: 30 | AA9: 30 | AB9: 30 | AC9: 30 | AD9: 30
B10: PRODUCT AND HOLE GEOMETRY | L10: HYB-FIX Hybrid Chemical Anchor [420 ml] | M10: HYB420 | N10: 0.42 | O10: [420] | P10: ml | Q10: CARTRIDGES | V10: =CONCATENATE("M",W10) -> M30 | W10: 30 | X10: 25.71 | Y10: 35 | Z10: 35 | AA10: 35 | AB10: 35 | AC10: 35 | AD10: 35
L11: VIN-FIX Vinylester Chemical Anchor [300 ml] | M11: FIX300 | N11: 0.3 | O11: [300] | P11: ml | Q11: CARTRIDGES
B12: Product Selection | C12: VIN-FIX Vinylester Chemical Anchor [300 ml] | L12: VIN-FIX Vinylester Chemical Anchor [420 ml] | M12: FIX420 | N12: 0.42 | O12: [420] | P12: ml | Q12: CARTRIDGES
L13: VIN-FIX PRO NORDIC Vinylester Chemical Anchor [410 ml] | M13: VIN410N | N13: 0.41 | O13: [ 410 ] | P13: ml | Q13: CARTRIDGES
B14: Rod Diameter | C14: M20 mm | D14: =C14/25.4 -> 0.79 in
B15: Hole Diameter | C15: =VLOOKUP(C14,W1:AD10,MATCH(C12,W1:AD1,0),FALSE) -> 24 mm | D15: =C15/25.4 -> 0.94 in
B16: Hole Depth | C16: 164 mm | D16: =C16/25.4 -> 6.46 in
B17: Total No. of Holes | C17: 50
L18: Waste Factor | M18: =1+C19 -> 1
B19: Overage Factor | C19: 0%
B23: Unit Conversion
B24: Unit conversions are not considered in the calculation of resin or epoxy and are provided for the user's convenience
B26: 20.0 mm | C26: =B26/25.4 -> 0.79 in
B27: 6.50 in | C27: =B27*25.4 -> 165.1 mm
B30: ORDER SUMMARY
B31: Total Hole Volume* | C31: =C48 -> 2,473,062 | D31: mm3 | G31: =F48 -> 2.47 | H31: Liters
B32: Including waste factor
B34: =INDEX(L1:L15,K2) -> VIN-FIX Vinylester Chemical Anchor [300 ml] | E34: code | F34: =INDEX(M1:M15,K2) -> FIX300 | G34: =CEILING(F48/INDEX(N1:N13,K2),1) -> 9 | H34: CARTRIDGES
B37: CALCULATIONS
B38: Hole Area | C38: =(C15*C15)*PI()/4 -> 452.4 | D38: mm2 | F38: =((C15/1000)*(C15/1000))*PI()/4 -> 0.000452 | G38: m2
B39: Rod Area | D39: mm2 | G39: m2
B40: Area Difference | C40: =C38-C39 -> 452.4 | D40: mm2 | F40: =F38-F39 -> 0.000452 | G40: m2
B42: "Net" Volume to be Filled
B43: Single Hole Volume | C43: =C38*((2/3)*C16) -> 49,461 | D43: mm3 | F43: =C43/(10^6) -> 0.0494612 | G43: dm3 (or liters)
B44: Total Hole Volume | C44: =C43*C17 -> 2,473,062 | D44: mm3 | F44: =F43*C17 -> 2.473062 | G44: dm3 (or liters)
B46: Volume to be Filled Considering Waste
B47: Single Hole Volume | C47: =C43*$M$18 -> 49,461 | D47: mm3 | F47: =$M$18*F43 -> 0.049461 | G47: dm3 (or liters)
B48: Total Hole Volume | C48: =C47*C17 -> 2,473,062 | D48: mm3 | F48: =F47*C17 -> 2.473062 | G48: dm3 (or liters)
B50: NOTES:
B51: 1. This calculation estimates resin quantity considering the following application guideline given in product ETA:
B58: 2. This calculation estimates resin quantity based on the selected overage factor. Overage is often dependent on the application and intaller experience
B59: 3. Rothoblaas reserves the right to update or change calculation methods, designs or models without notice or liability
B60: 4. Visit www.rothoblaas.com for the most up to date design resources
B61: 5. Product application and injection shall be according to Rothoblaas literature for the intended use

Sheet Foglio2 (hidden)
C2: Fissaggi | E2: 90
C3: VIN-FIX | E3: 110
C4: VIN-FIX PRO | E4: 150
C5: SKR-E 12 | E5: 210
C6: HYB-FIX | E6: 250
C7: EPO-FIX PLUS | E7: 290
E9: 200
